lending/lending_fUSD_20251022
["ID","MTS","AMOUNT","RATE_DAILY","PERIOD"]
[392120173,1761173362103,-614.76265092,0.00030637,2]
[392120174,1761173369228,-140.87560671,0.00030637,2]
[392120175,1761173369249,-250.0,0.0003069,2]
[392120176,1761173369269,-31.11494129,0.0003069,120]
[392120177,1761173414297,158.20169034,0.00035719,30]
[392120178,1761173423462,693.59,0.00018791,2]
[392120179,1761173423677,693.59,0.0001978,2]
[392120180,1761173423897,693.59,0.00020769,2]
[392120181,1761173424100,693.59,0.00021758,2]
[392120182,1761173424297,693.59,0.00022747,2]
[392120183,1761173424506,693.59,0.00023736,2]
[392120184,1761173424724,693.59,0.00024725,2]
[392120185,1761173425154,693.59,0.00025714,2]
[392120186,1761173425377,693.59,0.00026703,2]
[392120187,1761173425576,693.59,0.00027692,2]
[392120188,1761173426171,693.59,0.00028681,2]
[392120189,1761173426268,693.59,0.0002967,2]
[392120195,1761173431630,-693.59,0.00030659,2]
[392120196,1761173431640,-1600.0,0.00030689,2]
[392120197,1761173431651,-2468.88505871,0.0003069,120]
[392120198,1761173431661,-250.0,0.0003069,2]
[392120199,1761173431672,-264.66691542,0.0003069,120]
[392120200,1761173431682,-300.0,0.0003069,120]
[392120201,1761173431693,-156.0,0.00031,120]
[392120202,1761173431702,-164.0,0.00031,120]
[392120203,1761173431711,-693.59,0.00031648,2]
[392120204,1761173431721,-400.0,0.00031999,3]
[392120205,1761173431730,-150.0,0.00032,2]
[392120206,1761173431744,-500.65397396,0.0003205,5]
[392120207,1761173431753,-500.0,0.0003205,2]
[392120208,1761173431764,-500.0,0.0003205,5]
[392120209,1761173431774,-172.95312662,0.0003205,5]
[392120210,1761173431783,-500.0,0.00032132,2]
[392120211,1761173431792,-500.0,0.00032598,5]
[392120212,1761173431802,-693.59,0.00032637,2]
[392120213,1761173431811,-1600.0,0.00032989,2]
[392120214,1761173431820,-1305.0,0.00032989,2]
[392120215,1761173431830,-1000.0,0.00033037,2]
[392120216,1761173431840,-2487.7,0.00033038,10]
[392120217,1761173431849,-999.99,0.00033038,2]
[392120218,1761173431859,-209.83,0.00033038,2]
[392120219,1761173431869,-299.99,0.00033038,30]
[392120220,1761173431878,-3722.8,0.00033038,2]
[392120221,1761173431888,-367.81,0.00033038,2]
[392120222,1761173431898,-7337.48,0.00033038,2]
[392120223,1761173431907,-9999.99,0.00033038,2]
[392120224,1761173431917,-691.338,0.00033038,34]
[392120225,1761173431926,-2240.0,0.00033191,3]
[392120226,1761173431935,-1205.0,0.00033208,2]
[392120227,1761173431948,-693.59,0.00033626,2]
[392120228,1761173431958,-250.0,0.00033758,2]
[392120229,1761173431967,-262.49045203,0.00034416,7]
[392120230,1761173431977,-376.0,0.00034417,3]
[392120231,1761173431986,-693.59,0.00034615,2]
[392120233,1761173431995,-180.32647662,0.000348,120]
[392120235,1761173432005,-463.05396987,0.000348,120]
[392120236,1761173432015,-536.0386133,0.00034804,7]
[392120237,1761173432025,-693.59,0.00035603,2]
[392120238,1761173432034,-227.86790057,0.00035633,120]
[392120239,1761173432044,-463.05396987,0.000358,120]
[392120240,1761173432053,-240.0,0.00035898,3]
[392120241,1761173432063,-416.79,0.00036079,2]
[392120242,1761173432072,-1434.8,0.00036413,120]
[392120243,1761173432081,-693.59,0.00036592,2]
[392120244,1761173432091,-172.49,0.00036606,2]
[392120245,1761173432101,-463.05396987,0.000369,120]
[392120246,1761173432111,-818.10163414,0.00036994,30]
[392120247,1761173432120,-166.66,0.00037422,30]
[392120248,1761173432129,-693.59,0.00037581,2]
[392120249,1761173432142,-463.05396987,0.00038,120]
[392120250,1761173432151,-500.0,0.00038196,2]
[392120251,1761173432161,-166.66,0.0003821,30]
[392120252,1761173432170,-1500.0,0.000386,2]
[392120253,1761173432180,-258.3275,0.00038888,30]
[392120254,1761173432189,-157.96912438,0.00038898,2]
[392120255,1761173432199,-166.66,0.00038998,30]
[392120256,1761173432208,-1000.0,0.00039018,2]
[392120257,1761173432218,-724.59200877,0.00039059,30]
[392120258,1761173432228,-463.05396987,0.000391,120]
[392120259,1761173432237,-5000.0,0.00039606,120]
[392120260,1761173432247,-160.0,0.00039606,120]
[392120261,1761173432257,-416.79,0.00039655,2]
[392120262,1761173432267,-500.0,0.00039774,30]
[392120263,1761173432277,-166.66,0.00039786,30]
[392120264,1761173432286,-161.94362796,0.00040201,2]
[392120265,1761173432296,-150.0,0.00040488,4]
[392120266,1761173432306,-150.0,0.00040488,4]
[392120267,1761173432315,-281.96593312,0.00040488,4]
[392120268,1761173432325,-150.0,0.00040488,4]
[392120269,1761173432338,-166.66,0.00040573,30]
[392120270,1761173432347,-516.28200309,0.00040801,30]
[392120271,1761173432357,-157.96912437,0.00040961,2]
[392120272,1761173432366,-26802.38716801,0.00040961,2]
[392120285,1761173439488,-18952.54283199,0.00040961,2]
[392120286,1761173439499,-200.0,0.00040988,2]
[392120287,1761173439510,-270.5735801,0.00041,120]
[392120288,1761173439520,-500.0,0.00041103,30]
[392120289,1761173439530,-172.49,0.00041172,120]
[392120290,1761173439541,-166.66,0.00041361,30]
[392120291,1761173439550,-1434.8,0.00041394,120]
[392120292,1761173439559,-500.0,0.0004156,7]
[392120293,1761173439569,-168.0,0.00041875,2]
[392120294,1761173439579,-500.0,0.00042157,30]
[392120295,1761173439588,-168.0,0.00042214,2]
[392120296,1761173439597,-156.0,0.000425,120]
[392120297,1761173439607,-168.0,0.00042563,2]
[392120298,1761173439616,-168.0,0.00042684,2]
[392120299,1761173439626,-150.0,0.00042737,30]
[392120300,1761173439635,-150.0,0.00042737,30]
[392120301,1761173439645,-177.0,0.00043,90]
[392120302,1761173439655,-2754.9358552,0.0004301,15]
[392120303,1761173439664,-157.96912437,0.00043023,2]
[392120304,1761173439683,-293.70961061,0.00043109,31]
[392120305,1761173439693,-597.99563678,0.00043109,31]
[392120306,1761173439703,-233.50311676,0.00043109,31]
[392120307,1761173439712,-18111.5138792,0.0004311,2]
[392120308,1761173439723,-317.475909,0.0004311,2]
[392120309,1761173439732,-3142.0472912,0.0004311,2]
[392120310,1761173439741,-3217.4489559,0.0004311,2]
[392120311,1761173439753,-86431.2279514,0.0004311,2]
[392120312,1761173439763,-696.1,0.00043123,30]
[392120313,1761173439773,-2754.9358552,0.0004322,15]
[392120314,1761173439783,-168.0,0.00043227,2]
[392120315,1761173439792,-416.79,0.00043231,7]
[392120316,1761173439802,-168.0,0.00043329,2]
[392120317,1761173439811,-2754.9358552,0.0004343,15]
[392120318,1761173439821,-167.84,0.00043534,30]
[392120319,1761173439831,-1000.0,0.00043596,2]
[392120320,1761173439842,-2754.9358552,0.0004364,15]
[392120321,1761173439852,-932.0,0.0004365,30]
[392120322,1761173439862,-168.0,0.00043827,2]
[392120323,1761173439871,-160.8386421,0.00043836,2]
[392120324,1761173439881,-500.0,0.00043848,60]
[392120325,1761173439890,-2754.9358552,0.0004385,15]
[392120326,1761173439900,-1000.0,0.0004389,2]
[392120327,1761173439909,-534.527,0.000439,2]
[392120328,1761173439918,-3000.0,0.00043962,7]
[392120329,1761173439927,-500.0,0.00043962,120]
[392120330,1761173439937,-1000.0,0.00043963,120]
[392120331,1761173439946,-1205.56,0.00043963,16]
[392120332,1761173439955,-500.0,0.00043999,120]
[392120333,1761173439964,-500.0,0.00043999,120]
[392120334,1761173439974,-319.07420778,0.00043999,120]
[392120335,1761173439983,-224.69,0.00043999,7]
[392120336,1761173439994,-500.0,0.00043999,120]
[392120337,1761173440003,-500.0,0.00043999,120]
[392120338,1761173440014,-500.0,0.00043999,120]
[392120339,1761173440024,-500.0,0.00043999,120]
[392120340,1761173440033,-538.94,0.00044,7]
[392120341,1761173440043,-270.5735801,0.00044,120]
[392120342,1761173440052,-500.0,0.00044,120]
[392120343,1761173440063,-362.09,0.00044,120]
[392120344,1761173440073,-2754.9358552,0.0004406,15]
[392120345,1761173440082,-932.0,0.000441,30]
[392120346,1761173440092,-300.0,0.000442,16]
[392120347,1761173440101,-2754.9358552,0.0004427,15]
[392120348,1761173440110,-224.69,0.00044273,7]
[392120349,1761173440120,-700.0,0.000443,16]
[392120350,1761173440131,-1478.34,0.00044315,2]
[392120351,1761173440141,-1100.0,0.000444,16]
[392120352,1761173440151,-2754.9358552,0.0004448,15]
[392120353,1761173440160,-1400.0,0.000445,16]
[392120354,1761173440169,-932.0,0.0004455,30]
[392120355,1761173440179,-913.09646,0.0004455,23]
[392120356,1761173440189,-500.0,0.00044589,120]
[392120357,1761173440198,-601.32,0.00044589,120]
[392120358,1761173440208,-1800.0,0.000446,16]
[392120359,1761173440218,-2754.9358552,0.0004469,15]
[392120360,1761173440227,-300.0,0.000447,16]
[392120361,1761173440237,-461.9325,0.000447,2]
[392120362,1761173440247,-500.0,0.00044723,120]
[392120363,1761173440256,-281.04,0.00044723,120]
[392120364,1761173440267,-326.8,0.00044723,120]
[392120365,1761173440276,-500.0,0.00044723,120]
[392120366,1761173440285,-169.97233898,0.00044799,28]
[392120367,1761173440295,-1000.0,0.000448,2]
[392120368,1761173440304,-433.52291745,0.000448,2]
[392120369,1761173440314,-300.0,0.000448,16]
[392120370,1761173440323,-169.97233897,0.00044824,28]
[392120371,1761173440332,-169.97233897,0.00044849,28]
[392120372,1761173440342,-818.0,0.00044854,2]
[392120373,1761173440352,-2052.0,0.00044854,2]
[392120374,1761173440361,-3411.0,0.00044854,2]
[392120375,1761173440371,-1185.219,0.00044854,2]
[392120376,1761173440381,-604.0,0.00044854,2]
[392120377,1761173440390,-1269.0,0.00044854,2]
[392120378,1761173440400,-222.956,0.00044854,2]
[392120379,1761173440409,-2592.0,0.00044854,2]
[392120380,1761173440419,-6536.0,0.00044854,2]
[392120381,1761173440432,-557.0,0.00044854,2]
[392120382,1761173440442,-571.0,0.00044862,7]
[392120383,1761173440451,-169.97233897,0.00044875,28]
[392120384,1761173440460,-177.0,0.00044877,90]
[392120385,1761173440470,-2671.50997632,0.00044889,15]
[392120386,1761173440479,-1642.87944143,0.0004489,6]
[392120387,1761173440488,-2671.50997625,0.0004489,15]
[392120388,1761173440497,-2671.50997625,0.00044891,15]
[392120389,1761173440508,-2671.50997625,0.00044893,15]
[392120390,1761173440517,-2671.50997625,0.00044894,15]
[392120391,1761173440527,-2671.50997625,0.00044895,15]
[392120392,1761173440542,-2671.50997625,0.00044896,15]
[392120393,1761173440553,-500.0,0.00044897,120]
[392120394,1761173440563,-500.0,0.00044897,120]
[392120395,1761173440572,-500.0,0.00044897,7]
[392120396,1761173440583,-500.0,0.00044897,120]
[392120397,1761173440592,-500.0,0.00044897,120]
[392120398,1761173440602,-500.0,0.00044897,30]
[392120399,1761173440612,-502.58859303,0.00044897,30]
[392120400,1761173440621,-500.0,0.00044897,2]
[392120401,1761173440630,-500.0,0.00044897,120]
[392120402,1761173440640,-500.0,0.00044897,120]
[392120403,1761173440651,-2671.50997625,0.00044898,15]
[392120404,1761173440661,-500.0,0.00044898,120]
[392120405,1761173440671,-332.14,0.00044898,120]
[392120406,1761173440680,-500.0,0.00044898,120]
[392120407,1761173440690,-415.08,0.00044898,120]
[392120408,1761173440699,-500.0,0.00044898,120]
[392120409,1761173440708,-500.0,0.00044898,120]
[392120410,1761173440718,-500.0,0.00044898,120]
[392120411,1761173440727,-500.0,0.00044898,120]
[392120412,1761173440737,-644.55,0.00044898,120]
[392120413,1761173440746,-500.0,0.00044898,120]
[392120414,1761173440756,-1777.5798082,0.00044899,17]
[392120415,1761173440766,-500.0,0.00044899,120]
[392120416,1761173440775,-522.61,0.00044899,120]
[392120417,1761173440785,-500.0,0.00044899,120]
[392120418,1761173440795,-169.97233897,0.000449,28]
[392120419,1761173440807,-1642.87944142,0.000449,6]
[392120420,1761173440817,-5000.0,0.000449,120]
[392120421,1761173440827,-164.56047041,0.000449,17]
[392120422,1761173440836,-300.0,0.000449,16]
[392120423,1761173440846,-12697.2561,0.000449,60]
[392120424,1761173440855,-2754.9358552,0.000449,15]
[392120425,1761173440865,-353.52112482,0.000449,22]
[392120426,1761173440874,-215.7621603,0.000449,2]
[392120427,1761173440884,-179.45907924,0.000449,2]
[392120428,1761173440894,-1164.32405562,0.000449,2]
[392120429,1761173440903,-169.97233897,0.00044925,28]
[392120430,1761173440913,-500.0,0.00044973,10]
[392120431,1761173440923,-500.0,0.00044973,10]
[392120432,1761173440932,-500.0,0.00044973,10]
[392120433,1761173440942,-500.0,0.00044973,10]
[392120434,1761173440951,-548.96299865,0.00044973,10]
[392120435,1761173440960,-500.0,0.00044973,10]
[392120436,1761173440969,-500.0,0.00044973,10]
[392120437,1761173440979,-500.0,0.00044973,10]
[392120438,1761173440988,-504.36850196,0.00044973,10]
[392120439,1761173440998,-500.0,0.00044973,10]
[392120440,1761173441009,-175.28577664,0.00044986,30]
[392120441,1761173441020,-279.34590447,0.00044986,30]
[392120442,1761173441030,-170.1321002,0.00044986,30]
[392120443,1761173441039,-150.0,0.00044987,60]
[392120444,1761173441049,-150.0,0.00044987,60]
[392120445,1761173441059,-150.0,0.00044987,60]
[392120446,1761173441068,-150.0,0.00044987,60]
[392120447,1761173441078,-150.0,0.00044987,60]
[392120448,1761173441087,-150.0,0.00044987,60]
[392120449,1761173441096,-150.0,0.00044987,60]
[392120450,1761173441105,-150.0,0.00044987,60]
[392120451,1761173441115,-150.0,0.00044987,60]
[392120452,1761173441124,-500.0,0.00044987,60]
[392120453,1761173441133,-150.0,0.00044987,60]
[392120454,1761173441143,-150.0,0.00044987,60]
[392120455,1761173441152,-200.0,0.00044987,60]
[392120456,1761173441162,-150.0,0.00044987,60]
[392120457,1761173441329,-150.0,0.00044987,60]
[392120458,1761173441342,-514.27743823,0.00044989,120]
[392120459,1761173441351,-500.0,0.00044989,120]
[392120460,1761173441361,-500.0,0.00044989,120]
[392120461,1761173441370,-500.0,0.00044989,120]
[392120462,1761173441379,-250.7,0.00044999,120]
[392120463,1761173441389,-500.0,0.00044999,120]
[392120464,1761173441399,-642.22,0.00044999,120]
[392120465,1761173441409,-500.0,0.00044999,120]
[392120466,1761173441420,-500.0,0.00044999,120]
[392120467,1761173441431,-500.0,0.00044999,120]
[392120468,1761173441441,-500.0,0.00044999,120]
[392120469,1761173441452,-445.79,0.00044999,120]
[392120470,1761173441461,-500.0,0.00044999,120]
[392120471,1761173441471,-500.0,0.00044999,120]
[392120472,1761173441482,-588.4,0.00044999,120]
[392120473,1761173441492,-500.0,0.00044999,120]
[392120474,1761173441503,-543.43776263,0.00044999,120]
[392120475,1761173441514,-500.0,0.00044999,120]
[392120476,1761173441524,-384.88,0.00044999,120]
[392120477,1761173441539,-264.87,0.00044999,120]
[392120478,1761173441548,-500.0,0.00044999,120]
[392120479,1761173441557,-524.8,0.00044999,120]
[392120480,1761173441568,-594.6,0.00044999,120]
[392120481,1761173441578,-500.0,0.00044999,120]
[392120482,1761173441587,-3988.08407741,0.00045,18]
[392120483,1761173441595,-500.0,0.00045,120]
[392120484,1761173441603,-200.0,0.00045,120]
[392120485,1761173441613,-104316.72790087,0.00045,120]
[392120486,1761173441630,-535.75,0.000411,2]
[392120487,1761173441642,-169.33601175,0.000411,2]
[392120488,1761173441652,-91700.6590912,0.00045,120]
[392120489,1761173441663,-4928.27721203,0.00045,120]
[392120490,1761173441674,-2250.0,0.00045,120]
[392120491,1761173441695,-110342.17366617,0.00045,120]
[392120498,1761173443439,-2671.50997625,0.00044899,15]
[392120499,1761173443448,-55915.87380577,0.00045,120]
[392120500,1761173443701,-1405.43460236,0.00045,120]
[392120501,1761173445707,-5000.0,0.0004489,120]
[392120502,1761173445717,-10976.07419669,0.00045,120]
[392120503,1761173445729,-2010.56425723,0.00045,120]
[392120504,1761173445743,-262.6,0.00045,120]
[392120509,1761173516484,500.0,0.0003059,2]
[392120511,1761173613474,-196.35735892,0.00024932,2]
[392120512,1761173616459,-177.76250497,0.00024932,2]
[392120513,1761173703423,-232.29775785,0.00024832,2]
[392120517,1761173943426,1768.82624504,0.00027315,120]
[392120518,1761173944400,235.02648739,0.00027315,120]
[392120519,1761173973377,-1.72024215,0.00024832,2]
[392120520,1761173973562,-310.34048756,0.00024832,2]
[392120521,1761173976016,-203.18557972,0.00024832,2]
[392120522,1761173980165,-296.81442028,0.00024832,2]
[392120523,1761174007309,195.0,0.00027315,120]
[392120524,1761174018407,-198.54323388,0.00024832,2]
[392120525,1761174018428,-0.12676612,0.00024832,2]
[392120526,1761174022258,-301.33,0.00024832,2]
[392120528,1761174438113,-198.54323388,0.00024832,2]
[392120529,1761174438134,-129.50338893,0.00024832,2]
[392120530,1761174452204,-182.19781449,0.00024832,2]
[392120532,1761174554166,-188.29879658,0.00024832,2]
[392120533,1761174554195,-488.07442606,0.00024832,2]
[392120534,1761174554221,-150.0,0.00024832,2]
[392120535,1761174554245,-169.69285934,0.00024832,2]
[392120536,1761174554270,-500.0,0.00024932,2]
[392120537,1761174554293,-253.45231176,0.00027315,2]
[392120538,1761174554318,-800.0,0.00029467,7]
[392120539,1761174554342,-66.97148848,0.00030497,2]
[392120540,1761174560148,-196.30378711,0.00030497,2]
[392120541,1761174560172,-160.0,0.00031,120]
[392120542,1761174560197,-168.0,0.00031,120]
[392120543,1761174560423,-500.0,0.00031556,7]
[392120544,1761174560444,-500.0,0.00033176,7]
[392120545,1761174560464,-677.76250497,0.00033555,7]
[392120546,1761174560485,-3058.1,0.00033844,2]
[392120547,1761174560504,-186.483892,0.00034665,2]
[392120548,1761174560524,-500.0,0.00035017,30]
[392120549,1761174560547,-223.44015098,0.00035453,3]
[392120555,1761174631672,-150.0,0.00033676,3]
[392120556,1761174631683,-846.4525,0.00035453,2]
[392120557,1761174631695,-1190.4258665,0.00035453,2]
[392120558,1761174631706,-578.1816335,0.00035453,2]
[392120559,1761174631717,-605.07,0.00035453,2]
[392120560,1761174631728,-200.35848756,0.00035633,120]
[392120561,1761174631739,-422.45535188,0.00037044,120]
[392120562,1761174631749,-4.3018726,0.00037698,30]
[392120563,1761174631761,-495.6981274,0.00037698,30]
[392120564,1761174631770,-1600.0,0.00037807,3]
[392120565,1761174631780,-707.33279676,0.00037808,60]
[392120566,1761174631792,-2.63720324,0.00037808,60]
[392120567,1761174631801,-709.97,0.00037839,80]
[392120568,1761174631811,-500.0,0.00037855,30]
[392120569,1761174631820,-300.0,0.00037868,3]
[392120570,1761174631830,-400.0,0.00037868,2]
[392120571,1761174631840,-709.97,0.00037869,100]
[392120572,1761174631850,-150.0,0.00037869,2]
[392120573,1761174631861,-709.97,0.000379,120]
[392120574,1761174631870,-500.0,0.000379,5]
[392120575,1761174631879,-500.0,0.000379,5]
[392120576,1761174631889,-625.0,0.00038045,5]
[392120577,1761174631899,-181.53051402,0.00038587,2]
[392120578,1761174631909,-200.0,0.00039853,2]
[392120579,1761174631920,-186.73619982,0.00040071,2]
[392120580,1761174631939,-161.94362797,0.00040088,2]
[392120581,1761174631949,-161.54,0.00040234,2]
[392120582,1761174631959,-300.0,0.00040482,5]
[392120583,1761174631968,-150.0,0.00040488,4]
[392120584,1761174631978,-150.0,0.00040488,4]
[392120585,1761174631988,-150.0,0.00040488,4]
[392120586,1761174631998,-150.0,0.00040488,4]
[392120587,1761174632007,-260.71700305,0.00040488,4]
[392120588,1761174632018,-107.07636968,0.00040488,4]
[392120589,1761174632031,-42.92363032,0.00040488,4]
[392120590,1761174632045,-220.93837237,0.00040488,4]
[392120591,1761174632054,-150.00000001,0.00040488,4]
[392120592,1761174632065,-250.0,0.00040491,2]
[392120593,1761174632075,-188.74959507,0.00040573,5]
[392120594,1761174632087,-1136.25040493,0.00040573,5]
[392120596,1761174632097,-142.46774153,0.00041,90]
[392120598,1761174632109,-34.53225847,0.00041,90]
[392120600,1761174632120,-151.0,0.000411,2]
[392120602,1761174632130,-617.775,0.00041284,60]
[392120604,1761174632139,-344.35,0.00041284,2]
[392120606,1761174632148,-151.0,0.00041422,2]
[392120608,1761174632158,-6013.98,0.00041446,2]
[392120610,1761174632168,-1195.85,0.00041798,2]
[392120612,1761174632178,-150.0,0.00041987,30]
[392120614,1761174632188,-500.0,0.00042265,30]
[392120616,1761174632197,-160.0,0.000425,120]
[392120618,1761174632206,-1436.48,0.000425,120]
[392120620,1761174632215,-476.13251256,0.00042825,2]
[392120622,1761174632225,-2052.0,0.00042868,2]
[392120624,1761174632234,-185.376,0.00042868,2]
[392120626,1761174632243,-1269.0,0.00042868,2]
[392120628,1761174632254,-1500.0,0.00043,2]
[392120630,1761174632263,-949.74,0.00043096,30]
[392120632,1761174632273,-696.1,0.00043096,30]
[392120634,1761174632282,-150.0,0.00043487,30]
[392120636,1761174632291,-896.0,0.0004365,30]
[392120638,1761174632300,-532.65801521,0.00043763,30]
[392120641,1761174632312,-557.0,0.00043852,2]
[392120642,1761174632322,-6536.0,0.00043852,2]
[392120643,1761174632331,-168.0,0.00043859,2]
[392120644,1761174632340,-150.0,0.00043879,2]
[392120645,1761174632350,-154.03,0.00043999,7]
[392120646,1761174632359,-500.0,0.00043999,120]
[392120647,1761174632369,-500.0,0.00043999,120]
[392120648,1761174632379,-500.0,0.00043999,120]
[392120649,1761174632388,-500.0,0.00043999,120]
[392120650,1761174632397,-500.0,0.00043999,120]
[392120651,1761174632406,-500.0,0.00043999,120]
[392120652,1761174632416,-500.0,0.00043999,120]
[392120653,1761174632425,-500.0,0.00043999,120]
[392120654,1761174632435,-500.0,0.00043999,120]
[392120655,1761174632444,-500.0,0.00043999,120]
[392120656,1761174632454,-500.0,0.00043999,120]
[392120657,1761174632464,-500.0,0.00043999,120]
[392120658,1761174632671,-500.0,0.00043999,120]
[392120659,1761174632682,-500.0,0.00043999,120]
[392120660,1761174632692,-500.0,0.00043999,120]
[392120661,1761174632701,-500.0,0.00043999,120]
[392120662,1761174632711,-500.0,0.00043999,120]
[392120663,1761174632720,-500.0,0.00043999,120]
[392120664,1761174632730,-500.0,0.00043999,120]
[392120665,1761174632739,-500.0,0.00043999,120]
[392120666,1761174632749,-500.0,0.00043999,120]
[392120667,1761174632758,-500.0,0.00043999,120]
[392120668,1761174632768,-500.0,0.00043999,120]
[392120669,1761174632777,-188.84452601,0.00043999,120]
[392120670,1761174632787,-499.99999999,0.00043999,120]
[392120671,1761174632797,-47864.7819619,0.00044,120]
[392120672,1761174632807,-1004.64523731,0.0004405,2]
[392120673,1761174632816,-168.0,0.0004405,2]
[392120674,1761174632825,-896.0,0.000441,30]
[392120675,1761174632835,-154.03,0.00044273,7]
[392120676,1761174632848,-889.65936706,0.0004442,2]
[392120677,1761174632857,-154.04,0.00044547,7]
[392120678,1761174632866,-896.0,0.0004455,30]
[392120679,1761174632876,-878.097252,0.00044581,2]
[392120680,1761174632885,-278.9074,0.000446,2]
[392120681,1761174632895,-2445.3092,0.000446,2]
[392120682,1761174632904,-2502.52261876,0.000446,2]
[392120683,1761174632917,-1880.48346,0.000446,2]
[392120684,1761174632929,-1357.4,0.000446,2]
[392120685,1761174632940,-472.9659718,0.000446,2]
[392120686,1761174632951,-408.99744944,0.000446,2]
[392120687,1761174632961,-900.0,0.0004468,30]
[392120688,1761174632971,-221.95086957,0.00044699,120]
[392120689,1761174632981,-500.0,0.00044699,120]
[392120690,1761174632990,-272.81833515,0.00044699,120]
[392120691,1761174633000,-299.50883971,0.00044699,120]
[392120692,1761174633010,-1274.6462179,0.00044699,2]
[392120693,1761174633019,-68966.92650922,0.000447,2]
[392120694,1761174633031,-16073.46419078,0.000447,2]
[392120695,1761174633046,-2237.11715728,0.0004479,15]
[392120696,1761174633061,-2237.11715725,0.00044802,15]
[392120697,1761174633071,-2237.11715725,0.00044814,15]
[392120698,1761174633082,-2237.11715725,0.00044827,15]
[392120699,1761174633092,-2237.11715725,0.00044839,15]
[392120700,1761174633102,-2237.11715725,0.00044851,15]
[392120701,1761174633112,-3411.0,0.00044854,2]
[392120702,1761174633122,-2237.11715725,0.00044863,15]
[392120703,1761174633132,-2237.11715725,0.00044876,15]
[392120704,1761174633142,-2237.11715725,0.00044888,15]
[392120705,1761174633151,-1800.58891642,0.0004489,17]
[392120706,1761174633161,-1000.0,0.0004489,2]
[392120707,1761174633171,-5000.0,0.0004489,120]
[392120708,1761174633180,-501.94273419,0.00044896,120]
[392120709,1761174633192,-431.16726581,0.00044896,120]
[392120710,1761174633201,-933.1545789,0.00044897,2]
[392120711,1761174633212,-4193.93316334,0.00044897,2]
[392120724,1761174637595,-2592.0,0.00043852,2]
[392120727,1761174637605,-163.318815,0.00044873,15]
[392120728,1761174637614,-517.24619606,0.00044897,2]
[392120729,1761174637624,-15558.1710291,0.00044897,2]
[392120730,1761174637634,-12571.84101228,0.00044899,15]
[392120731,1761174637643,-12571.84101219,0.00044899,15]
[392120732,1761174637652,-12571.84101219,0.00044899,15]
[392120733,1761174637662,-12571.84101219,0.00044899,15]
[392120734,1761174637671,-12571.84101219,0.00044899,15]
[392120735,1761174637680,-12571.84101219,0.000449,15]
[392120736,1761174637690,-12571.84101219,0.000449,15]
[392120737,1761174637702,-10902.86200368,0.000449,15]
[392120738,1761174637715,-638.55537377,0.000449,15]
[392120739,1761174637727,-400.0,0.000449,15]
[392120740,1761174637740,-630.42363474,0.000449,15]
[392120741,1761174637750,-1113.98937069,0.000449,15]
[392120742,1761174637761,-2307.80385771,0.000449,15]
[392120743,1761174637774,-866.696336,0.000449,15]
[392120744,1761174637788,-1408.85446507,0.000449,15]
[392120745,1761174637807,-5000.0,0.00044899,120]
[392120746,1761174637817,-6874.49698272,0.000449,15]
[392120747,1761174637828,-160.61688528,0.000449,20]
[392120748,1761174637837,-2237.11715725,0.000449,15]
[392120749,1761174637847,-164.56047037,0.000449,17]
[392120750,1761174637856,-863.0725263,0.000449,60]